Cogmind - Beta 17.1 @@@ ROGUE MODE // 2026.09.08 @ 11:19:09 Player: MolePlayingNice Result: Destroyed by H-66 Slayer with Heavy Assault Rifle Performance ------------- Evolutions (5) 2500 Regions Visited (11) 2200 Robots Destroyed (177) 885 Value Destroyed (8967) 8967 Prototype IDs (12) 240 Alien Tech Used (0) 0 Bonus (4328) 4328 TOTAL SCORE: 19120 Bonus ------- High Alert Combat Kills 2346 Follower Combat Kills 2151 Network Hubs Disabled 400 Registered with UFD 300 Met Optimus in HQ 500 Built Enhanced Grunts 300 Met R17 at Cetus 500 Friendly Fire -2169 Cogmind --------- Core Integrity 0/1000 Matter 172/300 Energy 255/425 System Corruption 22% Temperature Hot (212) Movement Core (1150) Ox22 Location -5/Hub_04(d) Parts ------- > --- POWER (2) -------- Overtuned Antimatter Reactor > --- PROPULSION (2) --- (None) > --- UTILITY (10) ----- Advanced Coolant Injector High-capacity Storage Unit Partition Strike Chip Advanced Targeting Computer Core Analyzer Transmission Jammer (fused) > --- WEAPON (3) ------- Bore Cannon > --- INVENTORY (20) --- Overtuned Huge Scrapsphere Scrap Suit Improved Cooling System Advanced Cooling System Improved Coolant Injector Advanced Terrain Scanner Surveybot 17 Chip Advanced Recoil Stabilizer Improved Hacking Suite Advanced Variable Charge Gun Plasma Cannon Overtuned Phase Cannon Peak State ------------ > --- POWER ------------ Quantum Reactor Quantum Reactor > --- PROPULSION ------- Overtuned Huge Scrapsphere > --- UTILITY ---------- Scrap Suit Advanced Cooling System Improved Coolant Injector High-capacity Storage Unit Partition Strike Chip Advanced Targeting Computer Core Analyzer Transmission Jammer Centrium Medium Armor Plating > --- WEAPON ----------- Heavy Plasma Cannon Overtuned Phase Cannon Enhanced Gauss Cannon > --- INVENTORY -------- Overtuned Antimatter Reactor Centrium Heavy Treads Scrap Suit Improved Cooling System Improved Cooling System Advanced Coolant Injector Matter Compressor Advanced Terrain Scanner Surveybot 17 Chip Advanced Recoil Stabilizer Centrium Medium Armor Plating Centrium Medium Armor Plating Advanced Variable Charge Gun Plasma Cannon Heavy Phase Cannon Overtuned Phase Cannon Bore Cannon Precision Rocket Launcher [Rating: 105] Favorites ----------- Power Antimatter Reactor Engine Ion Engine Power Core Neutrino Core Reactor Antimatter Reactor Propulsion Overtuned Scrapsphere Treads Improved Treads Leg Aluminum Leg Wheel Overtuned Scrapsphere Utility High-capacity Storage Unit Device Improved Cooling System Storage High-capacity Storage Unit Processor Core Analyzer Hackware Improved Hacking Suite Protection Improved Medium Armor Plating Weapon Heavy Plasma Cannon Energy Gun Subdweller Laser Energy Cannon Heavy Plasma Cannon Ballistic Gun Heavy Machine Gun Ballistic Cannon Battle Cannon Launcher Precision Rocket Launcher Special Weapon CPS Tube Impact Weapon Mace Build | -11 -10 -10 -8 -6 -6 -6 -5 -5 -5 -5 -5 ------- Run | Yrd Mat Sub Scr Fac Was Fac Fac Ext Cet Arc Hub Slots Evolved 10 | . . . . 8 . . 2 . . . . Power 1 | . . . . 1 . . . . . . . Propulsion . | . . . . . . . . . . . . Utility 8 | . . . . 6 . . 2 . . . . Weapon 1 | . . . . 1 . . . . . . . Parts Attached 145 | . 13 4 8 31 4 16 43 11 8 1 6 Power 23 | . 2 . 2 5 2 1 7 1 2 . 1 Engine 6 | . 2 . . 2 . . 2 . . . . Core 7 | . . . 2 3 . . 2 . . . . Reactor 10 | . . . . . 2 1 3 1 2 . 1 Propulsion 18 | . 4 1 4 2 . 2 5 . . . . Treads 8 | . 4 1 2 1 . . . . . . . Leg . | . . . . . . . . . . . . Wheel 10 | . . . 2 1 . 2 5 . . . . Hover . | . . . . . . . . . . . . Flight . | . . . . . . . . . . . . Utility 59 | . 3 1 . 15 1 5 19 7 5 1 2 Device 31 | . 1 1 . 7 . 4 10 5 2 1 . Storage 3 | . 2 . . . . . . . 1 . . Processor 8 | . . . . 3 1 1 2 1 . . . Hackware 7 | . . . . 1 . . 4 1 . . 1 Protection 10 | . . . . 4 . . 3 . 2 . 1 Artifact . | . . . . . . . . . . . . Weapon 45 | . 4 2 2 9 1 8 12 3 1 . 3 Energy Gun 3 | . . 1 . 2 . . . . . . . Energy Cannon 17 | . 3 . . 1 1 4 6 2 . . . Ballistic Gun 7 | . . 1 . 4 . . . 1 . . 1 Ballistic Cannon 9 | . . . 2 1 . . 3 . 1 . 2 Launcher 4 | . . . . . . 3 1 . . . . Special Weapon 3 | . . . . . . 1 2 . . . . Impact Weapon 2 | . 1 . . 1 . . . . . . . Slashing Weapon . | . . . . . . . . . . . . Piercing Weapon . | . . . . . . . . . . . . Special Melee Weapon . | . . . . . . . . . . . . Unidentified Prototypes 10 | . . . . 3 . 2 1 . 4 . . Parts Lost 48 | . 1 2 . 2 . 5 26 . . . 12 Power 11 | . 1 . . 1 . 1 6 . . . 2 Propulsion 4 | . . . . . . 1 3 . . . . Utility 15 | . . . . . . 2 9 . . . 4 Weapon 18 | . . 2 . 1 . 1 8 . . . 6 Highest Loss Streak 15 | . 1 2 . 2 . 4 15 . . . 12 To Critical Strikes 3 | . . . . . . . 3 . . . . Average Backups 17 | 6 9 18 19 18 19 18 17 18 18 18 18 Power . | 1 . . . . 1 . . 1 1 1 . Propulsion 2 | 4 2 4 4 1 1 1 1 . . . . Utility 7 | . 2 4 5 9 9 8 8 10 9 10 10 Weapon 7 | 1 3 9 7 6 6 7 6 7 7 7 6 Tool/Special . | . . . . . . . . . . . . Unused Backups 66 | . 6 . 9 12 1 9 7 8 4 1 9 Power 4 | . 1 . . . 1 1 . 1 . . . Propulsion 8 | . 2 . 1 . . 1 3 . . 1 . Utility 30 | . 1 . 4 6 . 2 2 4 4 . 7 Weapon 23 | . 2 . 4 5 . 5 2 3 . . 2 Tool/Special 1 | . . . . 1 . . . . . . . Average Slot Usage (%) 93 | . 97 99 96 91 93 95 88 87 87 88 86 Engine 3 | . 13 14 1 5 4 . 1 . . . . Core 4 | . . . 11 6 2 . 1 9 . . . Reactor 4 | . . . . . 5 12 7 1 10 11 10 Treads 10 | . 26 28 23 . . . . . . . . Wheel 6 | . . . 4 12 13 12 9 5 5 5 4 Device 18 | . 11 14 13 19 20 19 22 21 22 23 22 Storage 8 | . 14 14 13 6 6 6 5 5 5 5 5 Processor 9 | . . . . 8 19 20 13 17 17 17 17 Hackware 1 | . . . . 5 . . 1 3 . . . Protection 2 | . . . . 4 . 2 5 2 4 5 4 Energy Gun 2 | . 6 8 4 1 6 . . . . . . Energy Cannon 9 | . 8 4 8 3 6 13 14 11 11 11 10 Ballistic Gun 5 | . 12 11 4 10 6 5 . 3 . . . Ballistic Cannon 2 | . . . 8 1 . . 1 1 4 5 5 Peak Build Rating 105 | 6 11 15 17 68 69 76 89 94 105 105 104 Average Rating 53 | 6 7 13 15 58 67 71 80 88 101 103 101 On Entrance 54 | 6 6 11 15 17 68 69 76 86 94 104 104 Avg Prop Armor Cover (%) 1 | . . . . . . . 1 . . . . Naked Turns 61 | . . . 61 . . . . . . . . Heaviest Build 126 | 12 52 54 54 84 96 107 126 111 123 123 123 Greatest Support 46 | 20 46 46 43 24 24 24 26 20 20 20 20 Greatest Overweight (x) 14 | . 1 1 3 3 3 12 14 5 6 6 6 Average Overweight (x) 3 | . . 1 1 2 3 5 6 4 5 6 6 Largest Inventory Capacity 20 | 8 20 20 20 20 20 20 20 20 20 20 20 Average Capacity 19 | 8 15 20 19 20 20 20 20 20 20 20 20 Most Carried 20 | 6 15 20 20 20 20 20 20 20 20 20 20 Average Carried 18 | 6 9 18 19 18 19 19 18 19 19 19 19 Final Capacity 20 | 8 20 20 20 20 20 20 20 20 20 20 20 Final Carried 20 | 6 15 20 20 20 20 20 19 20 20 20 14 Scrap Suit Usage (%) 9 | . . . . 23 100 20 10 1 1 . . Parts Cannibalized 8 | . . . . 1 . . 6 1 . . . Class Distribution -------------------- 40% | Mutant 25% | Scavenger-Scrapper 9% | Scavenger-Gunner 9% | Skirmisher 5% | Scavenger-Skirmisher 4% | Gunner Dominant Class ---------------- Mutant | -10/Materials Mutant | -10/Subcaves Mutant | -8/Scraptown Derelict-Skirmisher | -6/Factory Skirmisher | -6/Waste Scavenger-Gunner | -6/Factory Scavenger-Skirmisher | -5/Factory Scavenger-Scrapper | -5/Extension Scavenger-Scrapper | -5/Cetus Scavenger-Scrapper | -5/Archives Scavenger-Scrapper | -5/Hub_04(d) Resources | -11 -10 -10 -8 -6 -6 -6 -5 -5 -5 -5 -5 ----------- Run | Yrd Mat Sub Scr Fac Was Fac Fac Ext Cet Arc Hub Matter Collected 4830 | 200 304 187 266 637 524 735 1001 307 219 65 385 Remotely . | . . . . . . . . . . . . Salvage Created 10278 | . 321 169 . 829 1613 783 3052 1959 512 265 775 Parts 425 | . 19 19 . 32 20 46 144 71 29 12 33 Haulers Intercepted 3 | . 1 . . 1 . . . . . . 1 Recyclers Shooed 8 | . 3 . . 1 . . 3 1 . . . Parts Field Recycled . | . . . . . . . . . . . . Retrieved Matter . | . . . . . . . . . . . . Parts Self-Destructed 4 | . . 4 . . . . . . . . . Prevented . | . . . . . . . . . . . . Parts Restored . | . . . . . . . . . . . . Kills | -11 -10 -10 -8 -6 -6 -6 -5 -5 -5 -5 -5 ------- Run | Yrd Mat Sub Scr Fac Was Fac Fac Ext Cet Arc Hub Combat Hostiles Destroyed 134 | . 7 5 . 10 6 20 43 22 4 2 15 Guns 26 | . 5 4 . 6 4 3 . 4 . . . Cannons 74 | . 2 1 . 4 2 8 32 12 3 2 8 AOE 25 | . . . . . . 9 10 . . . 6 Classes Destroyed 23 | . 5 1 . 5 1 2 5 2 1 . 1 Worker 6 | . . . . 1 . . 5 . . . . Builder 8 | . . . . 1 . 1 6 . . . . Tunneler 1 | . . . . . . 1 . . . . . Hauler 3 | . 1 . . 1 . . . . . . 1 Recycler 7 | . 1 . . 1 . . 4 1 . . . Carrier 1 | . . . . . . . . 1 . . . Mechanic 1 | . . . . . . 1 . . . . . Operator 4 | . . . . . . . . 1 . 2 1 Watcher 10 | . 1 . . 1 . 1 3 1 2 . 1 Swarmer 12 | . 3 . . . . 7 2 . . . . Grunt 43 | . 4 . . 4 . 9 10 12 . . 4 Duelist 1 | . . . . 1 . . . . . . . Protector 3 | . . . . . . . 1 . . . 2 Sentry 16 | . . . . 4 . 1 3 6 . 2 . Specialist 4 | . . . . . . . 3 1 . . . Hunter 19 | . . . . . . . 15 1 . . 3 Programmer 13 | . . . . 1 . 3 7 . . . 2 Heavy 1 | . . . . . . . . . . . 1 Behemoth 3 | . . . . . . . 1 2 . . . Compactor 6 | . . . . . 6 . . . . . . Cetus Guard 4 | . . . . . . . . . 4 . . Lightning 3 | . . . . . . . . . . . 3 Subdweller 5 | . . 5 . . . . . . . . . Scraphulk 1 | . . . . . . . 1 . . . . Savage 1 | . . . . . . . . . 1 . . Best Kill Streak 19 | . 4 2 . 4 2 13 19 5 4 2 8 Combat Bots Only 16 | . 3 2 . 3 2 11 16 5 3 2 8 Max Kills in Single Turn 5 | . 2 1 . 2 1 3 5 1 2 1 2 Gunslinging 1 | . 1 . . . . . . . . . . Exploded 4 | . . . . . . 3 4 . . . 2 Melee . | . . . . . . . . . . . . Uniques/NPCs Destroyed 1 | . . . . . . . . . 1 . . A7 (-5/Cetus) Combat | -11 -10 -10 -8 -6 -6 -6 -5 -5 -5 -5 -5 -------- Run | Yrd Mat Sub Scr Fac Was Fac Fac Ext Cet Arc Hub Hostile Shots Fired 859 | . 57 38 . 131 . 93 369 20 18 6 127 Missed 239 | . 11 9 . 47 . 23 106 7 5 3 28 Hits 620 | . 46 29 . 84 . 70 263 13 13 3 99 Melee 3 | . . . . 3 . . . . . . . Projectile 617 | . 46 29 . 81 . 70 263 13 13 3 99 Critical Strikes 43 | . . 1 . 6 . . 18 4 4 . 10 Part Disruptions 3 | . . . . . . . 1 . . . 2 Damage Taken 12676 | . 507 608 . 1501 . 1145 5319 284 317 81 2914 Core 1479 | . 69 67 . 150 . 181 672 42 . . 298 Absorbed by Shields 141 | . . . . . . . . 89 52 . . Regen/Repaired (Parts) 254 | . . . . 3 . . 49 10 60 . 132 Core Remaining (%) 68 | 100 . . 45 . . 61 . . . . . Volleys Fired 527 | . 36 29 . 43 49 54 146 70 33 14 53 Largest 3 | . 2 2 . 3 3 3 3 3 3 3 3 Hottest 320 | . 120 120 . 153 200 205 298 320 252 277 277 Shots Fired 1157 | . 72 59 . 121 116 102 314 139 67 27 140 Gun 282 | . 55 37 . 69 71 20 . 24 . . 6 Cannon 852 | . 17 22 . 52 45 74 305 115 67 27 128 Launcher 19 | . . . . . . 7 6 . . . 6 Special 4 | . . . . . . 1 3 . . . . Kinetic 327 | . 30 18 . 80 31 20 41 30 17 5 55 Thermal 807 | . 42 41 . 41 85 74 264 109 50 22 79 Explosive 19 | . . . . . . 7 6 . . . 6 Electromagnetic . | . . . . . . . . . . . . Robot Hit Streak 20 | . 10 9 . 9 15 4 14 20 14 5 16 Robot Miss Streak 9 | . 3 3 . 5 4 4 4 3 2 2 9 Penetration Max 1 | . . . . . . . . . . . 1 Secondary Targets 2 | . 1 1 . . . . . . . . . Max Gunslinging Chain 1 | . 1 1 . . . . . . . . . Shots Hit Robots 671 | . 42 45 . 80 75 36 183 69 46 17 78 Core Hits 369 | . 17 10 . 33 23 32 104 42 24 13 71 Critical Kills 17 | . 1 . . 1 . . 4 7 1 . 3 Critical Parts Destroyed 4 | . . . . 1 . . 1 . . . 2 Critical Strikes 40 | . 3 . . 3 7 . 8 7 3 . 9 Burn 9 | . 2 . . . 7 . . . . . . Meltdown 13 | . . . . 1 . . 3 7 1 . 1 Destroy 9 | . 1 . . 1 . . 3 . . . 4 Blast 8 | . . . . . . . 2 . 2 . 4 Smash 1 | . . . . 1 . . . . . . . Melee Attacks 51 | . 1 36 . 14 . . . . . . . Impact 51 | . 1 36 . 14 . . . . . . . Slashing . | . . . . . . . . . . . . Piercing . | . . . . . . . . . . . . Sneak Attacks 1 | . . . . 1 . . . . . . . Combat Hostiles . | . . . . . . . . . . . . Follow-up Attacks . | . . . . . . . . . . . . Damage Inflicted 26787 | . 648 628 . 1872 1954 2453 8816 2494 1708 667 5547 Guns 3625 | . 432 556 . 981 1006 245 . 265 . . 140 Cannons 16482 | . 124 71 . 713 948 755 6158 2229 1708 667 3109 Explosions 6409 | . . . . . . 1453 2658 . . . 2298 Melee 178 | . . . . 178 . . . . . . . Ramming 93 | . 92 1 . . . . . . . . . Kinetic 5027 | . 206 273 . 1163 466 245 629 321 384 131 1209 Thermal 16047 | . 350 354 . 531 1488 755 6496 2173 1324 536 2040 Explosive 5442 | . . . . . . 1453 1691 . . . 2298 Electromagnetic . | . . . . . . . . . . . . Impact 178 | . . . . 178 . . . . . . . Slashing . | . . . . . . . . . . . . Piercing . | . . . . . . . . . . . . Highest Corruption 53 | . 2 2 . 4 51 53 5 5 . . 22 Average Corruption 14 | . 2 2 . 4 26 51 2 4 . . 2 Corruption Purged 5 | . . . . . . . . 5 . . . Corruption Blocked . | . . . . . . . . . . . . Effects 204 | . 4 21 . 3 32 94 32 6 . . 12 Message Errors 37 | . . 4 . 2 7 18 5 1 . . . Matter Fused 39 | . . 7 . . 3 16 9 3 . . 1 Heat Flow Errors 16 | . . 1 . . 2 9 3 . . . 1 Energy Discharges 27 | . 2 3 . . 2 11 6 1 . . 2 Parts Rejected 6 | . . . . . 3 2 . . . . 1 Parts Fused 6 | . . 1 . . 1 3 1 . . . . Data Loss (minor) 24 | . 2 2 . 1 4 12 3 . . . . Data Loss (major) 10 | . . 2 . . 1 3 2 1 . . 1 Misfires 10 | . . 1 . . . 5 2 . . . 2 Alerts 5 | . . . . . 3 2 . . . . . Misdirections 6 | . . . . . 2 4 . . . . . Weapon Failures 18 | . . . . . 4 9 1 . . . 4 Overload Shots 3 | . . . . . . . 3 . . . . Overflow Damage 696 | . . . . 160 . 91 292 17 . . 136 Projectiles 209 | . . . . 17 . . 91 17 . . 84 Explosions 344 | . . . . . . 91 201 . . . 52 Melee 143 | . . . . 143 . . . . . . . Knockbacks 7 | . . . . 3 . . 3 1 . . . Impact 1 | . . . . 1 . . . . . . . Kinetic 6 | . . . . 2 . . 3 1 . . . Secondary . | . . . . . . . . . . . . Self-Inflicted Damage 304 | . . . . . . 42 262 . . . . Shots 5 | . . . . . . 1 4 . . . . Rammed 15 | . 14 1 . . . . . . . . . Targets Rammed 15 | . 14 1 . . . . . . . . . Kicked . | . . . . . . . . . . . . Crushed . | . . . . . . . . . . . . Highest Temperature 676 | . 177 130 . 292 257 274 676 315 200 226 245 Average Temperature 101 | . 71 72 . 109 62 99 107 106 127 97 128 Received Heat Transfer 2322 | . 165 12 . 519 . 264 1019 118 . 18 207 Effects 10 | . . . . 1 . . 7 2 . . . Shutdowns 3 | . . . . . . . 3 . . . . Energy Bleed 2 | . . . . 1 . . 1 . . . . Interference 5 | . . . . . . . 3 2 . . . Siege Activations . | . . . . . . . . . . . . Martial Activations . | . . . . . . . . . . . . Shielding Activations . | . . . . . . . . . . . . Robots Disrupted . | . . . . . . . . . . . . Combat Hostiles . | . . . . . . . . . . . . Robots Corrupted 2 | . . . . 2 . . . . . . . Combat Hostiles . | . . . . . . . . . . . . Parts Fried 8 | . . . . 2 . . . . . . 6 Impact Corruptions 4 | . . . . 4 . . . . . . . Robots Melted 13 | . . . . 1 . . 3 7 1 . 1 Combat Hostiles 9 | . . . . . . . 1 6 1 . 1 Parts Melted 50 | . 2 . . . 2 1 22 12 1 2 8 Heat Transferred 22341 | . 1073 498 . 1110 3347 1031 7800 3035 1677 687 2083 Parts Sabotaged . | . . . . . . . . . . . . Parts Stolen . | . . . . . . . . . . . . Parts Stripped . | . . . . . . . . . . . . Power Chain Reactions . | . . . . . . . . . . . . Alert | -11 -10 -10 -8 -6 -6 -6 -5 -5 -5 -5 -5 ------- Run | Yrd Mat Sub Scr Fac Was Fac Fac Ext Cet Arc Hub Maximum Alert Level 5 | . . . . . . 1 5 5 3 2 4 Low Security (%) 48 | 100 100 . . 100 100 51 33 . . . 78 Level 1 13 | . . . . . . 48 20 . . 2 6 Level 2 6 | . . . . . . . 13 . . 97 1 Level 3 23 | . . . . . . . 21 73 100 . 2 Level 4 4 | . . . . . . . 3 18 . . 10 Level 5 3 | . . . . . . . 7 8 . . . High Security . | . . . . . . . . . . . . Max Security . | . . . . . . . . . . . . Peak Influence 1835 | . 70 . . 83 24 337 1835 1738 1066 565 1185 Initial 966 | . . . . . 22 . 44 896 966 368 169 Average 434 | . 11 . . 20 1 152 553 1075 982 516 272 Influence Increases 7829 | . 207 . . 371 10 771 2897 1528 272 267 1506 Destroy 0b10 Robot/C 3320 | . 140 . . 200 . 440 1220 680 140 80 420 Destroy 0b10 Robot/NC 355 | . 15 . . 25 . 20 165 50 10 25 45 Destroy Leader 658 | . 34 . . 74 . 102 260 92 . . 96 Allied During Kill 1002 | . . . . . . 16 122 461 90 105 208 Trap Triggered on 0b10 20 | . . . . 20 . . . . . . . Successful Hack 39 | . . . . . . . 19 20 . . . Disable Machine 780 | . . . . 15 . 120 360 45 . 45 195 Anti-Garrison Action 150 | . . . . . . . . . . . 150 Destroy Structure 1400 | . 3 . . 7 10 58 706 180 32 12 392 Partial Spotted 15 | . . . . 15 . . . . . . . Lose Combat Pursuer 90 | . 15 . . 15 . 15 45 . . . . Influence Decreases 6672 | . 173 34 . 308 73 681 1156 1633 1078 702 834 Entered New Map 2667 | . . 17 . . 41 . 46 935 760 552 316 Time Decay 2764 | . 173 17 . 297 32 401 640 538 238 150 278 Lost Part 441 | . . . . 11 . 50 260 . . . 120 Lost Ally 500 | . . . . . . 80 60 160 80 . 120 Purge Threat 300 | . . . . . . 150 150 . . . . Squads Dispatched 45 | . . . . 6 . 10 17 4 . . 8 Investigation 13 | . . . . 3 . 3 5 1 . . 1 Extermination 12 | . . . . 2 . 4 5 . . . 1 Reinforcement 10 | . . . . 1 . . 4 1 . . 4 Assault 7 | . . . . . . . 3 2 . . 2 Garrison 3 | . . . . . . 3 . . . . . Intercept . | . . . . . . . . . . . . Searches Triggered . | . . . . . . . . . . . . Construction Impeded 2 | . . . . . . . 1 . . . 1 Haulers Reinforced 2 | . . . . . . . 1 . . . 1 Active Scanning Responses . | . . . . . . . . . . . . Cargo Convoy Interrupts 1 | . . . . . . . 1 . . . . Stealth | -11 -10 -10 -8 -6 -6 -6 -5 -5 -5 -5 -5 --------- Run | Yrd Mat Sub Scr Fac Was Fac Fac Ext Cet Arc Hub Distress Signals 11 | . 2 . . 1 . . 3 2 2 . 1 Communications Jammed 108 | . . . . . . . 43 20 . . 45 Distress Signals 108 | . . . . . . . 43 20 . . 45 Times Spotted 226 | . 16 5 . 18 6 28 69 33 9 8 34 Peak Tracking Total 13 | . 5 2 . 3 3 7 6 3 5 2 13 Tactical Retreats 6 | . 1 . . 1 . 1 3 . . . . Traps | -11 -10 -10 -8 -6 -6 -6 -5 -5 -5 -5 -5 ------- Run | Yrd Mat Sub Scr Fac Was Fac Fac Ext Cet Arc Hub Traps Triggered 9 | . 1 . . 2 . 1 1 3 . . 1 Indirectly . | . . . . . . . . . . . . Trap Hack Attempts . | . . . . . . . . . . . . Triggered . | . . . . . . . . . . . . Disarmed 5 | . . . . . . . . 5 . . . Reprogrammed 6 | . . . . 6 . . . . . . . Reused 2 | . . . . 2 . . . . . . . Traps Extracted . | . . . . . . . . . . . . Installed . | . . . . . . . . . . . . Triggered 2 | . . . . 2 . . . . . . . Machines | -11 -10 -10 -8 -6 -6 -6 -5 -5 -5 -5 -5 ---------- Run | Yrd Mat Sub Scr Fac Was Fac Fac Ext Cet Arc Hub Machines Disabled 57 | . . . . 1 . 8 24 6 1 3 14 Max in Single Turn 3 | . . . . 1 . 2 3 1 . 1 1 Garrison Access 1 | . . . . . . . . . . . 1 Network Hub 2 | . . . . . . . . . . . 2 Machines Repaired . | . . . . . . . . . . . . Machines Dismantled . | . . . . . . . . . . . . Machines Sabotaged . | . . . . . . . . . . . . Overloaded Fab Kills . | . . . . . . . . . . . . Hacking | -11 -10 -10 -8 -6 -6 -6 -5 -5 -5 -5 -5 --------- Run | Yrd Mat Sub Scr Fac Was Fac Fac Ext Cet Arc Hub Machines Accessed 41 | . 1 . 1 6 . 11 10 9 . . 3 Terminals 20 | . 1 . . 2 . 4 2 8 . . 3 Fabricators 1 | . . . . . . 1 . . . . . Repair Stations 1 | . . . . 1 . . . . . . . Recycling Units 16 | . . . . 3 . 6 6 1 . . . Scanalyzers 1 | . . . . . . . 1 . . . . Garrison Access 1 | . . . . . . . 1 . . . . Total Hacks 94 | . 4 . 18 8 . 17 24 17 . . 6 Successful 52 | . . . 18 5 . 7 13 8 . . 1 Failed 42 | . 4 . . 3 . 10 11 9 . . 5 Catastrophic 7 | . . . . 1 . 4 1 . . . 1 Database Lockouts . | . . . . . . . . . . . . Manual 40 | . 4 . . 4 . 12 12 2 1 . 5 Terminals 44 | . 4 . . 4 . 7 8 15 . . 6 Fabricators 2 | . . . . . . 2 . . . . . Repair Stations 1 | . . . . 1 . . . . . . . Recycling Units 21 | . . . . 3 . 8 8 2 . . . Scanalyzers 6 | . . . . . . . 6 . . . . Garrison Access 2 | . . . . . . . 2 . . . . Terminal Hacks 34 | . . . 18 2 . 2 5 7 . . . Record 19 | . . . 18 . . . 1 . . . . Open Door 7 | . . . . . . . 1 6 . . . Branch Access Points 1 | . . . . . . . 1 . . . . Emergency Access Points 1 | . . . . . . 1 . . . . . Alert Level 1 | . . . . . . . 1 . . . . Unreport Threat 2 | . . . . . . 1 1 . . . . Locate Traps 1 | . . . . 1 . . . . . . . Disarm Traps 1 | . . . . . . . . 1 . . . Reprogram Traps 1 | . . . . 1 . . . . . . . Fabricator Hacks 1 | . . . . . . 1 . . . . . Network Status 1 | . . . . . . 1 . . . . . Repair Station Hacks . | . . . . . . . . . . . . Recycling Unit Hacks . | . . . . . . . . . . . . Scanalyzer 3 | . . . . . . . 3 . . . . Retrieve Study 3 | . . . . . . . 3 . . . . Garrison Access Hacks . | . . . . . . . . . . . . Unauthorized Hacks 14 | . . . . 3 . 4 5 1 . . 1 Terminals 1 | . . . . . . . . . . . 1 Sabotage 1 | . . . . . . . . . . . 1 Fabricators 1 | . . . . . . 1 . . . . . Liberate 1 | . . . . . . 1 . . . . . Repair Stations . | . . . . . . . . . . . . Recycling Units 12 | . . . . 3 . 3 5 1 . . . Fedlink 6 | . . . . 3 . 2 1 . . . . Scrapoids 2 | . . . . . . 1 1 . . . . Scraphulk 4 | . . . . . . . 3 1 . . . Scanalyzers . | . . . . . . . . . . . . Garrison Access . | . . . . . . . . . . . . Data Cores Recovered 2 | . . . . . . . . 1 . . 1 Used 1 | . . . . . . . . . . . 1 Hacking Detections 23 | . 1 . . 3 . 7 5 5 . . 2 Full Trace Events . | . . . . . . . . . . . . Feedback Events . | . . . . . . . . . . . . Feedback Blocked . | . . . . . . . . . . . . Robot Schematics Acquired . | . . . . . . . . . . . . Robots Built . | . . . . . . . . . . . . Authchips . | . . . . . . . . . . . . Time . | . . . . . . . . . . . . Total Robot Build Rating . | . . . . . . . . . . . . Part Schematics Acquired . | . . . . . . . . . . . . Parts Built . | . . . . . . . . . . . . Authchips . | . . . . . . . . . . . . Time . | . . . . . . . . . . . . Total Part Build Rating . | . . . . . . . . . . . . Part Studies Acquired 3 | . . . . . . . 3 . . . . Parts Repaired . | . . . . . . . . . . . . Time . | . . . . . . . . . . . . Parts Recycled . | . . . . . . . . . . . . Recycled Matter . | . . . . . . . . . . . . Retrieved Matter . | . . . . . . . . . . . . Retrieved Components . | . . . . . . . . . . . . Parts Scanalyzed . | . . . . . . . . . . . . Part Schematics Acquired . | . . . . . . . . . . . . Parts Damaged . | . . . . . . . . . . . . Bothacking | -11 -10 -10 -8 -6 -6 -6 -5 -5 -5 -5 -5 ------------ Run | Yrd Mat Sub Scr Fac Was Fac Fac Ext Cet Arc Hub Used RIF Installer . | . . . . . . . . . . . . Robots Hacked 1 | . . . . . . . 1 . . . . Non-combat . | . . . . . . . . . . . . Combat 1 | . . . . . . . 1 . . . . Robot Hacks Applied 1 | . . . . . . . 1 . . . . parse_system 1 | . . . . . . . 1 . . . . Relay Couplers Released 1 | . . . . . . . . . . . 1 Machine Destruction 1 | . . . . . . . . . . . 1 Fabnet Peak Effective % . | . . . . . . . . . . . . Robots Rewired 8 | . . . . . . . . 8 . . . Allies Hacked . | . . . . . . . . . . . . Hacks Repelled . | . . . . . . . . . . . . Allies | -11 -10 -10 -8 -6 -6 -6 -5 -5 -5 -5 -5 -------- Run | Yrd Mat Sub Scr Fac Was Fac Fac Ext Cet Arc Hub Total Allies 36 | . . . . . . 5 8 18 5 . . Largest Group 12 | . . . . . . 5 7 12 9 7 7 Highest-Rated Group 795 | . . . . . . 146 471 566 795 634 631 Highest-Rated Ally 159 | . . . . . . 31 123 159 159 123 123 Initial UFD Resources 43 | . . . . 24 40 40 43 35 30 30 30 Total Orders 15 | . . . . . . . . 6 . . 9 STAY 7 | . . . . . . . . 3 . . 4 FOLLOW 6 | . . . . . . . . 2 . . 4 AID 2 | . . . . . . . . 1 . . 1 Ally Attacks 358 | . . . . . . 24 123 95 45 10 61 Total Damage 10930 | . . . . . . 427 4270 1983 973 272 3005 Kills 78 | . . . . . . 2 35 20 3 5 13 Allies Corrupted 5 | . . . . . . 1 . . . . 4 Allies Melted . | . . . . . . . . . . . . Intel | -11 -10 -10 -8 -6 -6 -6 -5 -5 -5 -5 -5 ------- Run | Yrd Mat Sub Scr Fac Was Fac Fac Ext Cet Arc Hub Active Infowar (turns) 8510 | . . . . 1091 525 1498 2434 1538 504 314 606 Optics 3401 | . . . . 754 525 1498 624 . . . . Sensors 2651 | . . . . 706 522 605 818 . . . . Structural 696 | . . . . 694 2 . . . . . . Traps 1 | . . . . 1 . . . . . . . Jamming 6286 | . . . . . . 890 2434 1538 504 314 606 Robot Analysis Total . | . . . . . . . . . . . . Derelict Logs Recovered 4 | . . 1 3 . . . . . . . . Drone Launches . | . . . . . . . . . . . . Drone Recoveries . | . . . . . . . . . . . . Exploration | -11 -10 -10 -8 -6 -6 -6 -5 -5 -5 -5 -5 ------------- Run | Yrd Mat Sub Scr Fac Was Fac Fac Ext Cet Arc Hub Turns Passed 14294 | 2 934 1922 2795 1095 525 1498 2561 1538 504 314 606 Spaces Moved 7169 | 2 413 674 1370 613 223 927 1264 944 283 113 343 Core 111 | . . . 111 . . . . . . . . Treads 1980 | . 389 674 917 . . . . . . . . Legs 26 | 2 24 . . . . . . . . . . Wheels 5052 | . . . 342 613 223 927 1264 944 283 113 343 Hover . | . . . . . . . . . . . . Flight . | . . . . . . . . . . . . Fastest Speed 50 | 120 120 240 50 109 121 120 120 110 120 130 130 Average Speed 155 | 120 166 245 199 120 121 135 140 117 125 130 130 Slowest Speed 250 | 120 240 250 250 121 121 190 230 120 130 130 130 Overloaded Moves . | . . . . . . . . . . . . Propulsion Burnouts . | . . . . . . . . . . . . Robots Hopped . | . . . . . . . . . . . . Potential Cave-ins 5 | . . . . 3 . 2 . . . . . Cave-ins Triggered 1 | . . . . 1 . . . . . . . Exploration Rate (%) 52 | 2 70 43 83 20 75 44 31 87 56 78 36 Regions Visited 11 Branch Regions 6 Pre-discovered Areas 7 | . . 1 5 1 . . . . . . . Known Exits Taken 2 | . . . . . . 1 1 . . . . Unknown Exits Taken 7 | 1 1 1 1 . . . . 1 1 1 . Scrap Searched 8 | . . 3 5 . . . . . . . . Spaces Dug 67 | . 1 13 . 7 4 11 12 19 . . . Terrain Destroyed 413 | . 1 13 . 9 14 67 217 42 12 7 31 Melee 21 | . 1 13 . 7 . . . . . . . Projectile 218 | . . . . 2 14 38 79 42 12 7 24 AOE 174 | . . . . . . 29 138 . . . 7 Terrain Rammed . | . . . . . . . . . . . . Walls Destroyed . | . . . . . . . . . . . . Machines Disabled . | . . . . . . . . . . . . Actions | -11 -10 -10 -8 -6 -6 -6 -5 -5 -5 -5 -5 --------- Run | Yrd Mat Sub Scr Fac Was Fac Fac Ext Cet Arc Hub Total 9340 | 1 576 820 1442 859 383 1089 1796 1292 391 267 424 Wait 949 | . 75 62 . 76 96 34 265 157 35 134 15 Move 7158 | 1 412 673 1369 612 222 926 1263 943 282 112 343 Hop . | . . . . . . . . . . . . Pick Up 170 | . 15 7 36 30 3 21 31 13 11 3 . Fast Attach 67 | . 2 2 4 12 4 9 22 5 6 . 1 Attach 54 | . 1 2 5 8 . 8 20 . 3 1 6 Detach 13 | . 1 1 . 1 . 3 5 . 1 . 1 Swap 104 | . 10 5 7 30 4 10 22 9 2 1 4 Drop 153 | . 9 2 21 32 5 24 22 17 18 2 1 Fire 527 | . 36 29 . 43 49 54 146 70 33 14 53 Melee 51 | . 1 36 . 14 . . . . . . . Ram . | . . . . . . . . . . . . Kick . | . . . . . . . . . . . . Crush 15 | . 14 1 . . . . . . . . . Escape Stasis 25 | . . . . 1 . . . 24 . . . Rewire 54 | . . . . . . . . 54 . . . Trap . | . . . . . . . . . . . . Miscellaneous . | . . . . . . . . . . . . Route ------- -11/Scrapyard -10/Materials (discovered 4 exits: [*Mat x2] / [*Min] / [*Sub]) -10/Subcaves (discovered 2 exits: [*Mat] / *Scr) -8/Scraptown (discovered 2 exits: *Fac x2) -6/Factory (discovered 3 exits: Fac / *Low x2) -6/Waste -6/Factory (discovered 2 exits: *Fac / *Low) -5/Factory (discovered 6 exits: *Fac x2 / Upp x2 / *Ext x2) -5/Extension (discovered 2 exits: *Fac / *Cet) -5/Cetus (discovered 2 exits: *Fac / [*Arc]) -5/Archives (discovered 3 exits: *Fac / *Hub x2) -5/Hub_04(d) History --------- Turn | Location | Event 1 | -11/Scrapyard | Discovered new exit (range 1) 3 | -11/Scrapyard | Entered Materials 184 | -10/Materials | Discovered new exit (range 13) 300 | -10/Materials | Build established: Mutant 516 | -10/Materials | Discovered new exit (range 11) 728 | -10/Materials | Discovered new exit (range 16) 923 | -10/Materials | Discovered new exit (range 6) 937 | -10/Materials | Entered Subcaves 937 | -10/Subcaves | Learned Materials terminal intel 938 | -10/Subcaves | Approached by a straggling Scientist 1132 | -10/Subcaves | Discovered new exit (range 10) 2062 | -10/Subcaves | A swath of the cavern ceiling suddenly collapsed 2064 | -10/Subcaves | Core integrity fell below 50% 2156 | -10/Subcaves | Learned location of Zion (-7) 2156 | -10/Subcaves | Met a Zionite searching for "candidates" 2710 | -10/Subcaves | Scientist uncovered a shortcut to Scraptown 2859 | -10/Subcaves | Entered Scraptown 2859 | -8/Scraptown | System corruption cleaned by C-Scrubber 3340 | -8/Scraptown | Discovered new exit (range 11) 3398 | -8/Scraptown | Scanned Subdweller tech in exchange for log data 3405 | -8/Scraptown | Learned Research terminal intel 3410 | -8/Scraptown | Learned Factory garrison access intel 3473 | -8/Scraptown | Visited Spacefarers 3478 | -8/Scraptown | Heard Great Nut preacher, LISTEN AND RECITE! 3523 | -8/Scraptown | Visited SPCMW 3550 | -8/Scraptown | Visited Shadow of the Wyrm 4089 | -8/Scraptown | Visited Observation Area 4119 | -8/Scraptown | Visited Assassins FH 4157 | -8/Scraptown | Visited UFD Registry 4159 | -8/Scraptown | Registered with UFD as "Gravchassis" 4214 | -8/Scraptown | Visited Research Penetration Think Tank 4269 | -8/Scraptown | Visited Science Testing Area 4304 | -8/Scraptown | Visited Chapter 10 4362 | -8/Scraptown | Visited Scrap Suit Storage 4394 | -8/Scraptown | Visited Scrapoid Pod Storage 4419 | -8/Scraptown | Visited Cartography Club 4474 | -8/Scraptown | Visited DA-N13 Charitable Foundation 4484 | -8/Scraptown | Found DCF Scrap (30 items) 4554 | -8/Scraptown | Visited Curators Association 4639 | -8/Scraptown | Visited Sword Containment 5128 | -8/Scraptown | Found Scrap Suit 5152 | -8/Scraptown | Released all parts (7) 5172 | -8/Scraptown | Found Surveybot 17 Chip 5192 | -8/Scraptown | Found Deep Structural Scanner 5198 | -8/Scraptown | Learned location of Storage (-8) 5198 | -8/Scraptown | Learned location of Testing (-2) 5198 | -8/Scraptown | Learned 8 Factory zone layouts 5198 | -8/Scraptown | Learned 4 Mines zone layouts 5198 | -8/Scraptown | Learned location of Cetus (-5) 5198 | -8/Scraptown | Learned 4 Recycling zone layouts 5198 | -8/Scraptown | Learned 16 Lower Caves zone layouts 5198 | -8/Scraptown | Learned 16 Upper Caves zone layouts 5198 | -8/Scraptown | Learned 4 Armory zone layouts 5198 | -8/Scraptown | Learned Materials emergency access door positions 5198 | -8/Scraptown | Learned location of 1 exit from Lower Caves 5198 | -8/Scraptown | Learned location of 2 exits from Lower Caves 5198 | -8/Scraptown | Learned location of 2 exits from Upper Caves 5585 | -8/Scraptown | Met Optimus 5585 | -8/Scraptown | Accepted into 0bPrime 5649 | -8/Scraptown | Discovered new exit (range 3) 5654 | -8/Scraptown | Entered Factory 5654 | -6/Factory | Evolved 8 slots: Power x1, Utility x6, Weapon x1 5655 | -6/Factory | Identified exit to Lower Caves 5656 | -6/Factory | Identified exit to Factory 5657 | -6/Factory | Loaded intel: 4 garrison access locations 5755 | -6/Factory | Loaded intel: 8 recycling unit locations 5963 | -6/Factory | Build established: Derelict-Skirmisher 6022 | -6/Factory | Discovered exit to Lower Caves (range 7) 6110 | -6/Factory | Learned location of Protoforge (-3) 6493 | -6/Factory | Crushed by falling debris 6637 | -6/Factory | Found Prototype Processor 6637 | -6/Factory | Identified Exp. Targeting Computer 6749 | -6/Factory | Sucked down chute 6749 | -6/Factory | Entered Waste 6764 | -6/Waste | EMP discharged 6764 | -6/Waste | System corruption reached 10% 6771 | -6/Waste | Spotted C-40 Crusher 6835 | -6/Waste | Spotted C-40 Crusher 6864 | -6/Waste | EMP discharged 6892 | -6/Waste | Spotted C-40 Crusher 6936 | -6/Waste | Destroyed C-40 Crusher 6942 | -6/Waste | Destroyed C-40 Crusher 6964 | -6/Waste | EMP discharged 6974 | -6/Waste | Destroyed C-40 Crusher 7011 | -6/Waste | Spotted C-40 Crusher 7032 | -6/Waste | Build established: Skirmisher 7064 | -6/Waste | EMP discharged 7064 | -6/Waste | System corruption reached 30% 7093 | -6/Waste | Destroyed C-40 Crusher 7131 | -6/Waste | Spotted C-40 Crusher 7135 | -6/Waste | Spotted C-40 Crusher 7146 | -6/Waste | Destroyed C-40 Crusher 7164 | -6/Waste | EMP discharged 7174 | -6/Waste | Destroyed C-40 Crusher 7246 | -6/Waste | Discovered new exit (range 21) 7264 | -6/Waste | EMP discharged 7272 | -6/Waste | Identified exit to Factory 7274 | -6/Waste | Entered Factory 7498 | -6/Factory | Loaded intel: 8 recycling unit locations 7569 | -6/Factory | Garrison activated, responded to threat 7620 | -6/Factory | Destroyed 11 combat bots 7622 | -6/Factory | Lost 4 parts (1p1n1u1w) 7773 | -6/Factory | Noticed a derelict Sapper rigging charges 8113 | -6/Factory | Scrapoid reinforcements arrived 8115 | -6/Factory | Attached CPS modules to 06F03-D 8172 | -6/Factory | Found Scrap Suit 8184 | -6/Factory | Found Scrap Suit 8195 | -6/Factory | Lost 4 allies 8462 | -6/Factory | Build established: Scavenger-Gunner 8584 | -6/Factory | Discovered exit to Lower Caves (range 6) 8665 | -6/Factory | Discovered exit to Factory (range 7) 8772 | -6/Factory | Entered another Factory area 8772 | -5/Factory | Evolved 2 slots: Utility x2 8773 | -5/Factory | Identified exit to Upper Caves 8895 | -5/Factory | Discovered new exit (range 16) 8918 | -5/Factory | Identified exit to Factory 9028 | -5/Factory | Loaded intel: 8 recycling unit locations 9198 | -5/Factory | Scraphulk reinforcements arrived 9200 | -5/Factory | Attached CPS modules to 05F01-K 9539 | -5/Factory | Discovered exit to Factory (range 16) 9708 | -5/Factory | Build established: Scavenger-Skirmisher 10033 | -5/Factory | Cargo convoy interrupted 10045 | -5/Factory | Spotted 05F01-K 10308 | -5/Factory | Core integrity fell below 50% 10313 | -5/Factory | Destroyed 05F01-K 10340 | -5/Factory | Found Scrap Suit 10343 | -5/Factory | Destroyed 16 combat bots 10347 | -5/Factory | Lost 15 parts (2p2n6u5w) 10457 | -5/Factory | Identified exit to Extension 10463 | -5/Factory | Spotted B-75 Beast 10572 | -5/Factory | First assault squad dispatched 10637 | -5/Factory | Destroyed B-75 Beast 10691 | -5/Factory | Destroyed 8 combat bots 10704 | -5/Factory | Build established: Scavenger-Scrapper 10704 | -5/Factory | Lost 8 parts (3p1n2u2w) 10868 | -5/Factory | Lost 3 parts (1p1u1w) 10881 | -5/Factory | Scraphulk reinforcements arrived 10946 | -5/Factory | Scraphulk reinforcements arrived? 10979 | -5/Factory | Scrapoid reinforcements arrived 11012 | -5/Factory | Attached CPS modules to 05F02-K 11044 | -5/Factory | Lost 3 allies 11075 | -5/Factory | Found Scrap Suit 11120 | -5/Factory | Lost 3 allies 11150 | -5/Factory | Found Scrap Suit 11333 | -5/Factory | Entered Extension 11333 | -5/Extension | Accompanied by 1 ally 11875 | -5/Extension | Rescued a captive Derelict 11888 | -5/Extension | Rescued a captive Derelict 11889 | -5/Extension | Rescued a captive Derelict 11917 | -5/Extension | Rescued a captive Derelict 11919 | -5/Extension | Rescued a captive Derelict 11963 | -5/Extension | Rescued a captive Derelict 12194 | -5/Extension | Spotted B-75 Beast 12200 | -5/Extension | Destroyed B-75 Beast 12210 | -5/Extension | Spotted B-75 Beast 12226 | -5/Extension | Destroyed B-75 Beast 12233 | -5/Extension | First assault squad dispatched 12260 | -5/Extension | Lost 4 allies 12294 | -5/Extension | Rescued a captive Derelict 12295 | -5/Extension | Rescued a captive Derelict 12319 | -5/Extension | Rescued A7 12378 | -5/Extension | Lost 5 allies 12727 | -5/Extension | Scraphulk reinforcements arrived 12760 | -5/Extension | Disrupted transfer network 12801 | -5/Extension | Discovered exit to Factory (range 10) 12802 | -5/Extension | Discovered new exit (range 6) 12871 | -5/Extension | Entered Cetus 12871 | -5/Cetus | Accompanied by 9 allies (A7) 12876 | -5/Cetus | Acquired a Cetus Manufacturing Module code from A7 12904 | -5/Cetus | Spotted Cetus Guard 12906 | -5/Cetus | Spotted Cetus Guard 12912 | -5/Cetus | Spotted Cetus Guard 12916 | -5/Cetus | Destroyed Cetus Guard 12921 | -5/Cetus | Allies destroyed Cetus Guard 12948 | -5/Cetus | Lost 4 allies 13001 | -5/Cetus | Started Cetus Manufacturing Module 13016 | -5/Cetus | Discovered new exit (range 15) 13026 | -5/Cetus | Manufactured an Enhanced Grunt 13036 | -5/Cetus | Spotted Cetus Guard 13036 | -5/Cetus | Spotted Cetus Guard 13039 | -5/Cetus | Spotted Cetus Guard 13041 | -5/Cetus | Spotted Cetus Guard 13041 | -5/Cetus | Destroyed Cetus Guard 13050 | -5/Cetus | Destroyed Cetus Guard 13051 | -5/Cetus | Manufactured an Enhanced Grunt 13061 | -5/Cetus | Destroyed Cetus Guard 13066 | -5/Cetus | Allies destroyed Cetus Guard 13073 | -5/Cetus | Discovered exit to Factory (range 15) 13076 | -5/Cetus | Manufactured an Enhanced Grunt 13079 | -5/Cetus | Met Revision 17 13101 | -5/Cetus | Manufactured an Enhanced Grunt 13126 | -5/Cetus | Manufactured an Enhanced Grunt 13201 | -5/Cetus | Murdered A7 13204 | -5/Cetus | Extracted ID and sensor layout for unrecognized location from A7's data core 13208 | -5/Cetus | Found Prototype Protection 13208 | -5/Cetus | Identified Med. Regenerative Plating 13375 | -5/Cetus | Entered Archives 13375 | -5/Archives | Accompanied by 7 allies 13420 | -5/Archives | Discovered new exit (range 15) 13434 | -5/Archives | Discovered new exit (range 14) 13475 | -5/Archives | Discovered exit to Factory (range 13) 13689 | -5/Archives | Entered Hub_04(d) 13689 | -5/Hub_04(d) | Accompanied by 7 allies 13926 | -5/Hub_04(d) | Network Hub disabled 14171 | -5/Hub_04(d) | Spotted Lightning 14171 | -5/Hub_04(d) | Spotted Lightning 14174 | -5/Hub_04(d) | Spotted Lightning 14193 | -5/Hub_04(d) | Allies destroyed Lightning 14204 | -5/Hub_04(d) | Spotted Lightning 14211 | -5/Hub_04(d) | Spotted Lightning 14213 | -5/Hub_04(d) | Spotted Lightning 14216 | -5/Hub_04(d) | Core integrity fell below 20% 14216 | -5/Hub_04(d) | Network Hub disabled 14216 | -5/Hub_04(d) | Allies destroyed Lightning 14224 | -5/Hub_04(d) | Allies destroyed Lightning 14230 | -5/Hub_04(d) | Allies destroyed Lightning 14246 | -5/Hub_04(d) | Spotted Lightning 14248 | -5/Hub_04(d) | Lost 4 allies 14255 | -5/Hub_04(d) | System corruption reached 10% 14255 | -5/Hub_04(d) | Spotted Lightning 14262 | -5/Hub_04(d) | Spotted Lightning 14267 | -5/Hub_04(d) | Destroyed Lightning 14281 | -5/Hub_04(d) | Destroyed Lightning 14293 | -5/Hub_04(d) | Destroyed Lightning 14295 | -5/Hub_04(d) | Destroyed by H-66 Slayer with Heavy Assault Rifle Last Messages --------------- 14287_ HV Slug penetrates Lightning. 14287_ Slug penetrates Lightning. 14287_ HV Slug penetrates H-66 Slayer. 14287_ H-66 Slayer suffers critical hit (Destroy). 14287_ Destroyed Gauss Rifle. 14289_ Penetrated by EMDS Slug. 14289_ Bore Cannon destroyed. 14290_ K-01 Serf collects debris. 14290_ HV Slug penetrates H-66 Slayer. 14290_ H-66 Slayer suffers critical hit (Destroy). 14290_ Destroyed Gauss Rifle. 14293_ K-01 Serf collects debris. 14293_ Slug penetrates Lightning. 14293_ Lightning suffers critical hit (Destroy). 14293_ Lightning destroyed. 14293_ Penetrated by EMDS Slug. 14294_ K-01 Serf collects debris. 14295_ Ovr. Coil Gun destroyed. Map ----- +----------------------------------------------------+ | ??????????????????# " " #" | | ??????????????????# !! "" !! " #"" ! | | ??????????????????# ]%= "" !! " #"" | | ??????????????????" !!= "" ! = # #"" | | ??????????????????" "" # #"" " | | ????????????????? " %=% "" # #"T " | | ????????????????? """""""""""""" ""### #"" " | | ????????????????? " "% " !%! " #?# #"" | | ??????????????????# "= """""#*! ###?# #"" " | | ??????????????????###### !== #???######"" " | | ???????????????? ! *%*!##########"*%" | | ????????????# # !*! # * # % | | ????????????# "" " " ; # #+#### | | ?????????????? ## # #### | | ????????????#!! " ## # | | ????????????#!! ## """" + | | ???????????##!! =*+ """" # " | | ??????????? " k !%## """" ## " | | ??????????#";;; ;#;;;#/ =[! # #/### """" #? " | | ?????????? ;;;;%; ;[%## ;# #? " | | ??????????" ;!;;;/;%!;# ###########? | | ????????? =[[%[ /;/ ;# ;## #??????? | | ????????? ! !!= ;; !;; / #??????? | | ???????? * = %!;/ k; #####??????? | | ???????? h = %=; ; ;#########??????? ] | | ???????? %h !] @ % R + ????? | | ???????? %=% = % %=%= * #???????????+## | | ???????? = h = ] ==| #?????????????? | | ????????" % #?????????????? | | ????????? !% gg ### | #?????????????? | | ????????? ! i ???# #?????????????? | | ?????????? g #????# #?????????????? | | ?????????? ??????# #?????????????? | | ?????????? ???????# #?????????????? | | ??????????? ????????; #?????????????? | | ???????????? ?????????; #?????????????? | | ??????????????????????; #?????????????? | | ????????????????????? ###;;;;;;;;###?????????????? | | ????????????????????? ??? ######????????????????? | | ????????????????????????? #?????????????????????? | | ????????????????????????? #?????????????????????? | | ?????????????????????????????????????????????????? | | ?????????????????????????????????????????????????? | | ?????????????????????????????????????????????????? | | ?????????????????????????????????????????????????? | | ?????????????????????????????????????????????????? | | ?????????????????????????????????????????????????? | | ?????????????????????????????????????????????????? | | ?????????????????????????????????????????????????? | | ?????????????????????????????????????????????????? | +----------------------------------------------------+ Best States ------------- Heat Dissipation 113 Coolant Potential 100 Energy Generation 45 Energy Capacity 725 Matter Stores 300 Matter Capacity 300 Sight Range 22 Robot Scan Range 15 Terrain Scan Density 10 Jamming Range 12 Armor Coverage 625 Evasion (%) 50 Targeting Accuracy 8 Core Analysis 6 Recoil Reduction 2 Salvage Targeting 3 Offensive Hacking 24 Item Schematics ----------------- None Robot Schematics ------------------ None Fabricated ------------ Nothing Repaired ---------- Nothing Studied --------- Hvy. Plasma Cannon | -5/Factory | Hacked Imp. Ion Engine | -5/Factory | Hacked Com. Wheel | -5/Factory | Hacked Alien Tech Used ----------------- None Achievements -------------- None Challenges ------------ None Game ------ Seed TrackerTargetSword Manual? 0 Play Time 02:04:51 Cumulative 515.4 hours Start 2026.09.08 @ 08:50:18 End 2026.09.08 @ 11:19:09 Sessions 1 Manual Loads 0 Difficulty Rogue Special Mode None Game No. 197 Rogue 197 Adventurer 0 Explorer 0 Win Type - Total 18 Types 4/0/8/0/1/0/2/1/1/1 Lore% 83 Gallery% 86 Achievement% 77 Wizard Run 0 Options --------- Layout 1 ASCII 0 Keyboard 0 Movement Arrows Keybinds 0 Fullscreen 1 Font 24/Smallcaps Map View 50x35 Zoom Use 0% Tactical HUD 1 Map Filters NONE Filters NONE Steam 1 RUN: b33b7d17-c362-46f0-a7d0-d78c2f597db7